bitfinex-derivatives/quotes_BTCF0:USTF0_20251030
["timestamp","ask_amount","ask_price","bid_price","bid_amount"]
[1761829345505,0.3608,108500.0,108490.0,0.04432]
[1761829345709,0.23010478,108500.0,108490.0,0.04432]
[1761829345906,0.59090478,108500.0,108490.0,0.04432]
[1761829346094,0.61090478,108500.0,108490.0,0.04432]
[1761829346704,0.61790478,108500.0,108490.0,0.04432]
[1761829347009,0.8622634,108500.0,108490.0,0.04432]
[1761829347806,0.62290478,108500.0,108490.0,0.04432]
[1761829348502,0.60290478,108500.0,108490.0,0.04432]
[1761829348903,0.62290478,108500.0,108490.0,0.04432]
[1761829349598,0.23293911,108500.0,108490.0,0.28367862]
[1761829349810,0.23293911,108500.0,108490.0,0.04432]
[1761829349999,0.24218682,108500.0,108490.0,0.04432]
[1761829350196,0.21199605,108500.0,108490.0,0.40512]
[1761829350405,0.21199605,108500.0,108490.0,0.04432]
[1761829351312,0.21199605,108500.0,108490.0,0.28367862]
[1761829351612,0.21199605,108500.0,108490.0,0.64723862]
[1761829351911,0.032,108500.0,108490.0,0.04432]
[1761829352512,0.012,108500.0,108490.0,0.28643862]
[1761829352908,0.012,108500.0,108490.0,0.04432]
[1761829354106,0.012,108500.0,108490.0,0.64723862]
[1761829354309,0.012,108500.0,108490.0,0.04432]
[1761829355705,0.032,108500.0,108490.0,0.04432]
[1761829355913,0.012,108500.0,108490.0,0.04432]
[1761829356206,0.3728,108500.0,108490.0,0.04432]
[1761829356418,0.012,108500.0,108490.0,0.04432]
[1761829358711,0.012,108500.0,108490.0,0.64447862]
[1761829358907,0.012,108500.0,108490.0,0.40512]
[1761829359109,0.012,108500.0,108490.0,0.04432]
[1761829359316,0.3728,108500.0,108490.0,0.04432]
[1761829359816,0.3928,108500.0,108490.0,0.04432]
[1761829360311,0.012,108500.0,108490.0,0.04432]
[1761829360508,0.012,108500.0,108490.0,0.64447862]
[1761829361316,0.012,108500.0,108490.0,0.40512]
[1761829363020,0.012,108500.0,108490.0,0.04432]
[1761829364413,0.3928,108500.0,108490.0,0.04432]
[1761829364605,0.3728,108500.0,108490.0,0.04432]
[1761829364810,0.39372214,108500.0,108490.0,0.04432]
[1761829365409,0.3928,108500.0,108490.0,0.04432]
[1761829366525,0.3728,108500.0,108490.0,0.04432]
[1761829367115,0.012,108500.0,108490.0,0.28367862]
[1761829367312,0.012,108500.0,108490.0,0.04432]
[1761829367514,0.3728,108500.0,108490.0,0.04432]
[1761829368024,0.3728,108500.0,108490.0,0.28367862]
[1761829368216,0.012,108500.0,108490.0,0.64447862]
[1761829368611,0.001,108500.0,108490.0,0.60015862]
[1761829368816,0.001,108500.0,108490.0,0.04385]
[1761829369316,0.3618,108500.0,108490.0,0.04585]
[1761829369516,0.3608,108500.0,108490.0,0.04585]
[1761829370611,0.3608,108510.0,108500.0,0.05723]
[1761829370820,0.3808,108510.0,108500.0,0.05723]
[1761829371518,0.91015862,108510.0,108500.0,0.05723]
[1761829371723,0.7707706,108510.0,108500.0,0.05723]
[1761829372223,1.01012922,108510.0,108500.0,0.03605]
[1761829372424,1.01112922,108510.0,108500.0,0.03605]
[1761829372619,1.33752922,108510.0,108480.0,0.05719]
[1761829372826,0.60015862,108490.0,108480.0,0.05719]
[1761829373025,0.4108,108490.0,108480.0,0.05719]
[1761829373927,0.7008,108490.0,108480.0,0.05919]
[1761829374122,0.89012922,108490.0,108480.0,0.05919]
[1761829374322,0.6507706,108490.0,108480.0,0.05919]
[1761829374517,1.2507706,108490.0,108480.0,0.01534]
[1761829374722,1.49012922,108490.0,108480.0,0.05919]
[1761829374918,1.49112922,108490.0,108480.0,0.05919]
[1761829375118,1.9361706,108490.0,108480.0,0.05919]
[1761829375423,2.19980642,108490.0,108480.0,0.05919]
[1761829375627,1.7451706,108490.0,108480.0,0.05719]
[1761829375816,1.6662,108490.0,108480.0,0.05719]
[1761829376014,1.6662,108490.0,108480.0,0.29654862]
[1761829376015,0.3618,108490.0,108480.0,0.29654862]
[1761829376218,0.001,108490.0,108480.0,0.29654862]
[1761829376417,0.3850772,108500.0,108490.0,0.04385]
[1761829376625,0.4050772,108500.0,108490.0,0.04385]
[1761829377829,0.94443582,108500.0,108480.0,0.05719]
[1761829378018,0.3608,108490.0,108480.0,0.05719]
[1761829378329,0.3808,108490.0,108480.0,0.05719]
[1761829378919,1.22411862,108490.0,108480.0,0.01334]
[1761829379433,1.22411862,108490.0,108480.0,0.01534]
[1761829379617,1.0090372,108490.0,108480.0,0.002]
[1761829379814,1.24939582,108490.0,108460.0,0.03601]
[1761829380015,0.3608,108470.0,108460.0,0.05719]
[1761829380729,0.3608,108480.0,108470.0,0.04385]
[1761829381032,0.7100372,108490.0,108480.0,0.05723]
[1761829381331,0.7600372,108490.0,108480.0,0.05723]
[1761829381533,0.7601172,108490.0,108480.0,0.05723]
[1761829381827,0.68484,108490.0,108480.0,0.05772]
[1761829382027,0.70684,108490.0,108480.0,0.05772]
[1761829382228,0.68784,108490.0,108480.0,0.05772]
[1761829382430,0.3638,108490.0,108480.0,0.05772]
[1761829382621,0.003,108490.0,108480.0,0.05772]
[1761829382821,0.3608,108500.0,108490.0,0.04486]
[1761829383125,0.4607706,108500.0,108490.0,0.04486]
[1761829383329,0.3608,108500.0,108490.0,0.04486]
[1761829383540,0.3808,108500.0,108490.0,0.04486]
[1761829384025,0.58479605,108500.0,108490.0,0.04486]
[1761829384423,0.56479605,108500.0,108490.0,0.04486]
[1761829384624,0.58479605,108500.0,108490.0,0.04486]
[1761829385226,0.58879605,108500.0,108490.0,0.04486]
[1761829385925,0.56879605,108500.0,108490.0,0.04486]
[1761829386130,0.3688,108500.0,108490.0,0.28421862]
[1761829386522,0.3688,108500.0,108490.0,0.31720362]
[1761829386930,0.3688,108500.0,108490.0,0.04486]
[1761829387330,0.3888,108500.0,108490.0,0.04486]
[1761829388235,0.5188,108500.0,108490.0,0.04486]
[1761829388527,0.94815862,108500.0,108480.0,0.091225]
[1761829388719,0.3608,108490.0,108480.0,0.05824]
[1761829390029,0.6898,108500.0,108490.0,0.04486]
[1761829390229,0.7098,108500.0,108490.0,0.04486]
[1761829390537,0.7078,108500.0,108490.0,0.04486]
[1761829391123,0.7078,108500.0,108490.0,0.05763]
[1761829391323,0.6878,108500.0,108490.0,0.05763]
[1761829391634,0.003,108490.0,108480.0,0.01277]
[1761829391825,0.6738,108490.0,108480.0,0.03596]
[1761829392027,1.2738,108490.0,108480.0,0.03596]
[1761829392233,1.2708,108490.0,108480.0,0.01277]
[1761829392535,0.4108,108490.0,108480.0,0.05763]
[1761829392734,0.92015862,108490.0,108470.0,0.03596]
[1761829392921,0.3608,108480.0,108470.0,0.090615]
[1761829393130,0.3808,108480.0,108470.0,0.05763]
[1761829393529,1.21503862,108480.0,108460.0,0.091185]
[1761829393734,0.3608,108470.0,108460.0,0.091185]
[1761829394333,0.3608,108470.0,108460.0,0.0582]
[1761829394831,0.3608,108470.0,108460.0,0.091185]
[1761829395723,0.3618,108470.0,108460.0,0.091185]
[1761829396035,0.39095858,108470.0,108460.0,0.091185]
[1761829396626,0.39095858,108470.0,108460.0,0.0582]
[1761829397029,0.37095858,108470.0,108460.0,0.0582]
[1761829398433,0.01015858,108470.0,108460.0,0.0582]
[1761829398639,0.001,108470.0,108460.0,0.091185]
[1761829399325,0.001,108470.0,108460.0,0.49221097]
[1761829399525,0.68568,108480.0,108460.0,0.49221097]
[1761829399726,0.68568,108480.0,108470.0,0.0557]
[1761829399927,0.68568,108480.0,108470.0,0.08881202]
[1761829400541,0.3608,108480.0,108470.0,0.08881202]
[1761829401632,0.3698764,108480.0,108470.0,0.08881202]
[1761829402528,0.3698764,108480.0,108470.0,0.08981202]
[1761829403441,0.3608,108490.0,108480.0,0.0557]
[1761829403636,0.3608,108490.0,108480.0,0.08881202]
[1761829403838,0.3608,108490.0,108480.0,0.04614202]
[1761829404058,0.3808,108490.0,108480.0,0.01303]
[1761829404251,0.37016832,108490.0,108480.0,0.0557]
[1761829404452,0.71016832,108490.0,108480.0,0.0557]
[1761829404954,0.42016832,108490.0,108480.0,0.0557]
[1761829405154,0.74588832,108490.0,108480.0,0.0557]
[1761829405349,0.69688832,108490.0,108480.0,0.0557]
[1761829406053,0.002,108490.0,108480.0,0.0557]
[1761829406357,0.002,108490.0,108480.0,0.1384188]
[1761829406550,0.002,108490.0,108480.0,0.0557]
[1761829406752,0.002,108490.0,108480.0,0.1384302]
[1761829406952,0.002,108490.0,108480.0,0.90025617]
[1761829407146,0.002,108490.0,108480.0,0.86713275]
[1761829407850,0.002,108490.0,108480.0,0.46610678]
[1761829408046,0.37002848,108500.0,108490.0,0.0557]
[1761829408357,0.37002848,108500.0,108490.0,0.0888176]
[1761829409058,0.39002848,108500.0,108490.0,0.0557]
[1761829409255,0.39602848,108500.0,108490.0,0.0557]
[1761829409446,0.37602848,108500.0,108490.0,0.0557]
[1761829410243,0.37602848,108500.0,108490.0,0.0888176]
[1761829410449,0.006,108500.0,108490.0,0.0888176]
[1761829413459,0.006,108500.0,108490.0,0.90025035]
[1761829413659,0.006,108500.0,108490.0,0.46886678]
[1761829414058,0.006,108500.0,108490.0,0.46610678]
[1761829414661,0.006,108500.0,108490.0,0.4165]
[1761829415362,0.68556,108520.0,108510.0,0.05678]
[1761829415565,0.73556,108520.0,108510.0,0.05678]
[1761829415858,1.37564211,108520.0,108500.0,0.03551]
[1761829416058,0.3608,108510.0,108500.0,0.01381]
[1761829416253,0.4108,108510.0,108500.0,0.03551]
[1761829416450,0.4108,108510.0,108490.0,0.08908066]
[1761829416650,0.4108,108510.0,108500.0,0.01381]
[1761829416854,0.6608,108510.0,108500.0,0.01381]
[1761829417060,1.06458597,108510.0,108490.0,0.01303]
[1761829417261,0.3608,108500.0,108490.0,0.01303]
[1761829417461,0.4108,108500.0,108490.0,0.01303]
[1761829417665,0.4108,108500.0,108490.0,0.03473]
[1761829417966,0.4108,108500.0,108490.0,0.056]
[1761829418168,0.4108,108500.0,108480.0,0.06781066]
[1761829418169,0.9854,108500.0,108480.0,0.06781066]
[1761829418367,0.3608,108490.0,108480.0,0.08908066]
[1761829418563,0.3808,108490.0,108480.0,0.056]
[1761829418765,0.5298,108490.0,108480.0,0.03473]
[1761829418965,0.5298,108490.0,108480.0,0.056]
[1761829419163,0.5298,108490.0,108480.0,0.01303]
[1761829419468,0.5298,108490.0,108480.0,0.03673]
[1761829419672,0.5298,108490.0,108480.0,0.01503]
[1761829420162,0.5298,108490.0,108480.0,0.03673]
[1761829420369,0.5298,108490.0,108480.0,0.058]
[1761829421471,0.5298,108490.0,108480.0,0.056]
[1761829421661,0.5318,108490.0,108480.0,0.056]
[1761829421863,0.3618,108490.0,108480.0,0.056]
[1761829422569,0.002,108490.0,108480.0,0.056]
[1761829423267,0.002,108490.0,108480.0,0.44988066]
[1761829423470,0.001,108490.0,108480.0,0.44988066]
[1761829423666,0.3608,108510.0,108500.0,0.05678]
[1761829423970,0.3808,108510.0,108500.0,0.06859066]
[1761829424168,0.3808,108510.0,108500.0,0.05678]
[1761829424169,0.4807706,108510.0,108500.0,0.05678]
[1761829424370,0.3808,108510.0,108500.0,0.05678]
[1761829425062,0.3608,108510.0,108500.0,0.05678]
[1761829425267,0.3808,108510.0,108500.0,0.05678]
[1761829425666,0.3818,108510.0,108500.0,0.05678]
[1761829426273,0.3828,108510.0,108500.0,0.05678]
[1761829426459,0.3628,108510.0,108500.0,0.05678]
[1761829426864,0.3828,108510.0,108500.0,0.05678]
[1761829428663,0.3828,108510.0,108500.0,0.01381]
[1761829428869,0.7028,108510.0,108500.0,0.01381]
[1761829430079,0.6427706,108510.0,108500.0,0.05678]
[1761829430376,0.94658597,108510.0,108490.0,0.01381]
[1761829430572,0.68568,108500.0,108490.0,0.03551]
[1761829430771,0.68568,108500.0,108490.0,0.01381]
[1761829430980,0.84568,108500.0,108490.0,0.01381]
[1761829431171,1.00568,108500.0,108480.0,0.03473]
[1761829431373,1.00568,108500.0,108480.0,0.056]
[1761829431574,0.3608,108490.0,108480.0,0.01303]
[1761829431778,0.3808,108490.0,108480.0,0.056]
[1761829432077,0.3808,108490.0,108480.0,0.03473]
[1761829432473,0.3808,108490.0,108480.0,0.03673]
[1761829432680,0.3808,108490.0,108480.0,0.058]
[1761829433067,0.3808,108490.0,108480.0,0.056]
[1761829433270,0.3808,108490.0,108480.0,0.058]
[1761829434872,0.3608,108490.0,108480.0,0.058]
[1761829435082,0.3808,108490.0,108480.0,0.058]
[1761829435878,0.3608,108490.0,108480.0,0.058]
[1761829436282,0.3608,108500.0,108490.0,0.05678]
[1761829436476,0.70564,108500.0,108490.0,0.05678]
[1761829436676,0.3608,108500.0,108490.0,0.05678]
[1761829436878,0.70564,108500.0,108490.0,0.05678]
[1761829437077,0.70564,108500.0,108480.0,0.40891066]
[1761829437078,1.01564,108500.0,108480.0,0.06981066]
[1761829437377,0.3608,108490.0,108480.0,0.058]
[1761829437578,0.4108,108490.0,108480.0,0.058]
[1761829437792,0.3608,108490.0,108480.0,0.058]
[1761829438281,0.3808,108490.0,108480.0,0.056]
[1761829438483,0.68568,108490.0,108480.0,0.056]
[1761829438882,0.68568,108490.0,108480.0,0.058]
[1761829439471,0.70568,108490.0,108480.0,0.058]
[1761829439676,0.68568,108490.0,108480.0,0.058]
[1761829440687,0.68568,108490.0,108480.0,0.09108066]
[1761829440985,0.70568,108490.0,108480.0,0.058]
[1761829441991,1.00568,108490.0,108480.0,0.03673]
[1761829442192,0.86568,108490.0,108480.0,0.03673]
[1761829442392,0.70568,108490.0,108480.0,0.05802]
[1761829444092,0.87568,108490.0,108480.0,0.01503]
[1761829444283,1.37943657,108490.0,108480.0,0.002]
[1761829444687,1.38943657,108490.0,108460.0,0.04689066]
[1761829444989,0.3608,108470.0,108460.0,0.04689066]
[1761829445191,1.0054,108470.0,108460.0,0.04689066]
[1761829445386,1.0054,108470.0,108460.0,0.01381]
[1761829445692,1.0054,108470.0,108450.0,0.08953066]
[1761829445893,1.1053706,108470.0,108460.0,0.002]
[1761829446086,1.1053706,108470.0,108460.0,0.007]
[1761829446795,1.4661706,108470.0,108460.0,0.007]
[1761829447190,1.86719657,108470.0,108460.0,0.007]
[1761829447393,1.4661706,108470.0,108460.0,0.007]
[1761829447587,1.86719657,108470.0,108460.0,0.007]
[1761829448193,1.86919657,108470.0,108460.0,0.002]
[1761829448792,1.86919657,108470.0,108450.0,0.01381]
[1761829448995,0.3608,108460.0,108450.0,0.01381]
[1761829449187,0.3608,108460.0,108440.0,0.01388]
[1761829449188,1.06458597,108460.0,108440.0,0.01388]
[1761829449499,0.68536,108450.0,108440.0,0.01388]
[1761829449697,1.38638597,108450.0,108430.0,0.03523]
[1761829449994,0.3608,108440.0,108430.0,0.03523]
[1761829450193,0.3808,108440.0,108430.0,0.05652]
[1761829451387,0.3798,108440.0,108430.0,0.05652]
[1761829451588,0.38881796,108440.0,108430.0,0.05652]
[1761829451793,0.00901796,108440.0,108430.0,0.05652]
[1761829451999,0.3808,108440.0,108430.0,0.05952]
[1761829454284,0.3808,108440.0,108430.0,0.01688]
[1761829454684,0.3808,108440.0,108430.0,0.05961]
[1761829454890,0.39018035,108440.0,108430.0,0.05961]
[1761829455293,0.00938035,108440.0,108430.0,0.05961]
[1761829455592,0.68536,108450.0,108440.0,0.05697]
[1761829455593,0.68516,108450.0,108440.0,0.05697]
[1761829455794,0.37019605,108460.0,108450.0,0.05697]
[1761829456099,0.79460665,108460.0,108450.0,0.05697]
[1761829456300,0.69463605,108460.0,108450.0,0.05697]
[1761829458098,0.6852,108460.0,108450.0,0.29907692]
[1761829458394,0.6852,108460.0,108450.0,0.69019758]
[1761829458395,0.3254,108460.0,108450.0,0.69019758]
[1761829458601,0.3254,108460.0,108450.0,0.45085066]
[1761829460204,0.3254,108460.0,108450.0,0.05697]
[1761829460205,0.3454,108460.0,108450.0,0.05697]
[1761829460409,0.3254,108460.0,108450.0,0.05697]
[1761829463992,0.3254,108460.0,108450.0,0.09005066]
[1761829465599,0.3254,108460.0,108450.0,0.64226905]
[1761829467701,1.19903678,108460.0,108440.0,0.06867066]
[1761829468006,0.19141839,108450.0,108440.0,0.09005066]
[1761829468199,0.19141839,108450.0,108440.0,0.28146905]
[1761829468400,0.19141839,108450.0,108440.0,0.24838839]
[1761829468601,0.6862,108460.0,108450.0,0.04324]
[1761829468809,0.92661839,108460.0,108450.0,0.04324]
[1761829469196,1.20661839,108460.0,108450.0,0.04324]
[1761829469398,0.7352,108460.0,108450.0,0.04324]
[1761829469600,0.92661839,108460.0,108450.0,0.04324]
[1761829470407,1.40803678,108460.0,108440.0,0.09105066]
[1761829470594,0.55221839,108450.0,108440.0,0.09105066]
[1761829470793,0.60221839,108450.0,108440.0,0.05797]
[1761829471200,0.60221839,108450.0,108440.0,0.05697]
[1761829471401,0.3808,108450.0,108440.0,0.24838839]
[1761829471596,0.3608,108450.0,108440.0,0.24838839]
[1761829471807,0.87661839,108460.0,108450.0,0.01334]
[1761829472008,1.03661839,108460.0,108450.0,0.01334]
[1761829472307,1.22803678,108460.0,108450.0,0.01334]
[1761829472810,0.7052,108460.0,108450.0,0.24892839]
[1761829473107,0.001,108460.0,108450.0,0.05751]
[1761829473314,0.001,108460.0,108450.0,0.69059066]
[1761829473609,0.3618,108460.0,108450.0,0.09059066]
[1761829474106,0.3818,108460.0,108450.0,0.09059066]
[1761829474407,0.62107161,108460.0,108450.0,0.06746066]
[1761829474602,0.64107161,108460.0,108440.0,0.09641744]
[1761829474808,0.68524,108450.0,108440.0,0.09098066]
[1761829475010,0.70524,108450.0,108440.0,0.0579]
[1761829475200,0.68524,108450.0,108440.0,0.0579]
[1761829475601,0.70524,108450.0,108440.0,0.0579]
[1761829475799,0.68524,108450.0,108440.0,0.0579]
[1761829476308,0.68524,108450.0,108440.0,0.0589]
[1761829476711,0.32444,108450.0,108440.0,0.09198066]
[1761829477205,0.69469842,108470.0,108460.0,0.01334]
[1761829477418,0.71469842,108470.0,108460.0,0.01334]
[1761829478099,0.74469842,108470.0,108460.0,0.05751]
[1761829478309,0.74669842,108470.0,108460.0,0.05751]
[1761829478612,0.74769842,108470.0,108460.0,0.05751]
[1761829479109,0.98697003,108470.0,108450.0,0.05412066]
[1761829479304,0.98697003,108470.0,108450.0,0.07725066]
[1761829479609,0.3608,108460.0,108450.0,0.07725066]
[1761829479814,0.4108,108460.0,108450.0,0.03308066]
[1761829480016,0.65007161,108460.0,108440.0,0.09098066]
[1761829480213,0.32456,108450.0,108440.0,0.09098066]
[1761829480615,0.68536,108450.0,108440.0,0.09098066]
[1761829480918,0.68536,108450.0,108440.0,0.0579]
[1761829482620,0.68536,108450.0,108440.0,0.0589]
[1761829483318,0.70536,108450.0,108440.0,0.01473]
[1761829483616,0.72536,108450.0,108440.0,0.01473]
[1761829483806,0.72536,108450.0,108440.0,0.001]
[1761829483807,0.96463161,108450.0,108440.0,0.001]
[1761829484210,0.72536,108450.0,108440.0,0.001]
[1761829484916,0.68536,108450.0,108440.0,0.001]
[1761829485213,1.39979969,108450.0,108440.0,0.001]
[1761829486612,1.40255969,108450.0,108420.0,0.06746066]
[1761829486811,0.3608,108430.0,108420.0,0.06746066]
[1761829487013,0.68536,108430.0,108420.0,0.09059066]
[1761829487213,0.70536,108430.0,108420.0,0.09059066]
[1761829487712,1.00536,108430.0,108420.0,0.04842066]
[1761829487906,1.00536,108430.0,108420.0,0.01534]
[1761829487907,0.9353306,108430.0,108420.0,0.01534]
[1761829488107,0.9353306,108430.0,108420.0,0.01834]
[1761829489114,1.36460221,108430.0,108420.0,0.01834]
[1761829489417,1.1253306,108430.0,108420.0,0.01834]
[1761829490309,1.36460221,108430.0,108420.0,0.01834]
[1761829490717,0.7853306,108430.0,108420.0,0.06251]
[1761829490905,0.68536,108430.0,108420.0,0.06251]
[1761829491213,0.3608,108430.0,108420.0,0.30178161]
[1761829491420,0.03365907,108470.0,108460.0,0.05751]
[1761829491613,0.38513625,108480.0,108470.0,0.04417]
[1761829491912,0.41450766,108480.0,108470.0,0.04417]
[1761829492118,0.39450766,108480.0,108470.0,0.04417]
[1761829492415,0.02433625,108480.0,108460.0,0.61341161]
[1761829492618,0.61762864,108490.0,108480.0,0.05751]
[1761829492915,0.64703146,108490.0,108480.0,0.05751]
[1761829493115,0.59019887,108490.0,108480.0,0.05751]
[1761829493518,0.82947048,108490.0,108480.0,0.01334]
[1761829493917,0.59019887,108490.0,108480.0,0.01334]
[1761829494112,0.82947048,108490.0,108480.0,0.01334]
[1761829494421,1.09947048,108490.0,108480.0,0.01334]
[1761829494720,0.96844108,108490.0,108480.0,0.01334]
[1761829495114,0.96844108,108490.0,108480.0,0.03438]
[1761829495618,0.30896665,108490.0,108480.0,0.98904442]
[1761829495915,0.30896665,108490.0,108480.0,0.80213959]
[1761829495916,0.006,108490.0,108480.0,0.80213959]
[1761829496118,0.006,108490.0,108480.0,0.75253281]
[1761829496324,0.006,108490.0,108480.0,0.7993012]
[1761829496912,0.006,108490.0,108480.0,0.71632999]
[1761829497113,0.006,108490.0,108480.0,0.80852119]
[1761829497520,0.007,108490.0,108480.0,0.7993012]
[1761829497920,0.007,108490.0,108480.0,0.70987]
[1761829498118,0.007,108490.0,108480.0,0.70711]
[1761829498309,0.3648,108490.0,108480.0,0.32975272]
[1761829498513,0.004,108490.0,108480.0,0.32975272]
[1761829499717,0.004,108490.0,108480.0,0.69055272]
[1761829499930,0.004,108490.0,108480.0,0.69331272]
[1761829500223,0.004,108490.0,108480.0,0.69055272]
[1761829501217,0.004,108490.0,108480.0,0.74977281]
[1761829501415,0.004,108490.0,108480.0,0.69331272]
[1761829501622,0.004,108490.0,108480.0,0.66034161]
[1761829501824,0.004,108490.0,108480.0,0.75253281]
[1761829502431,0.37017773,108510.0,108480.0,0.63654161]
[1761829502725,0.3608,108530.0,108520.0,0.05615]
[1761829502933,0.59023495,108530.0,108520.0,0.01273]
[1761829503121,0.82950656,108530.0,108500.0,0.05615]
[1761829503321,0.3608,108510.0,108500.0,0.05615]
[1761829503526,0.3818,108510.0,108500.0,0.05615]
[1761829503725,0.70816,108510.0,108500.0,0.05615]
[1761829504127,0.68816,108510.0,108500.0,0.05615]
[1761829504336,0.70716,108510.0,108500.0,0.05615]
[1761829504526,0.71016,108510.0,108500.0,0.05615]
[1761829505126,0.69016,108510.0,108500.0,0.05615]
[1761829505429,0.71516,108510.0,108500.0,0.05615]
[1761829505631,0.69516,108510.0,108500.0,0.05615]
[1761829505828,0.71516,108510.0,108500.0,0.05615]
[1761829506025,0.69516,108510.0,108500.0,0.05615]
[1761829507724,0.69216,108510.0,108500.0,0.05615]
[1761829507921,0.68716,108510.0,108500.0,0.29742161]
[1761829508336,0.68716,108510.0,108500.0,0.05815]
[1761829508630,0.68816,108510.0,108500.0,0.29642161]
[1761829508828,0.3618,108510.0,108500.0,0.05715]
[1761829509022,0.3272,108510.0,108500.0,0.41795]
[1761829509231,0.001,108510.0,108500.0,0.5101242]
[1761829509432,0.002,108510.0,108500.0,0.65622161]
[1761829509632,0.002,108510.0,108500.0,0.05615]
[1761829509832,0.3628,108510.0,108500.0,0.05615]
[1761829510336,0.68892,108510.0,108500.0,0.05615]
[1761829511234,0.3628,108510.0,108500.0,0.05615]
[1761829511427,0.6888,108510.0,108500.0,0.05615]
[1761829511628,0.328,108510.0,108500.0,0.65622161]
[1761829511832,0.3608,108550.0,108500.0,0.75115581]
[1761829512025,0.3808,108550.0,108540.0,0.05615]
[1761829512224,0.94615161,108550.0,108540.0,0.01273]
[1761829512424,0.94615161,108550.0,108520.0,0.41695]
[1761829512631,0.3608,108530.0,108520.0,0.05615]
[1761829512824,0.69611478,108530.0,108520.0,0.05615]
[1761829513034,0.71611478,108530.0,108520.0,0.05615]
[1761829513733,0.69611478,108530.0,108520.0,0.05615]
[1761829513930,0.69711478,108530.0,108520.0,0.05615]
[1761829515033,0.69811478,108530.0,108520.0,0.05615]
[1761829515441,0.69811478,108530.0,108520.0,0.29542161]
[1761829515733,0.69811478,108530.0,108520.0,0.05615]
[1761829518640,0.68888,108530.0,108520.0,0.05615]
[1761829519836,0.3628,108530.0,108520.0,0.05615]
[1761829520042,0.3628,108530.0,108520.0,0.82024429]
[1761829520043,0.002,108530.0,108520.0,0.82024429]
[1761829520246,0.002,108530.0,108520.0,1.42941886]
[1761829520538,0.002,108530.0,108520.0,1.41748429]
[1761829520943,0.002,108530.0,108520.0,0.81748429]
[1761829521341,0.3608,108550.0,108530.0,0.04406]
[1761829521538,0.02433625,108570.0,108560.0,0.05681]
[1761829521539,0.06824625,108570.0,108560.0,0.05681]
[1761829521737,0.04391,108570.0,108560.0,0.41761]
[1761829522042,0.37067,108570.0,108560.0,1.91761]
[1761829522745,0.37467,108570.0,108560.0,1.91761]
[1761829523840,0.37567,108570.0,108560.0,1.91761]
[1761829524043,0.78647,108570.0,108560.0,1.5]
[1761829524341,0.75447,108570.0,108560.0,1.5]
[1761829524542,0.75447,108570.0,108560.0,2.27408429]
[1761829524543,0.003,108570.0,108560.0,2.27408429]
[1761829524846,0.003,108570.0,108560.0,1.87355]
[1761829524847,0.37403,108570.0,108560.0,1.87355]
[1761829525642,0.37395,108570.0,108560.0,2.27408429]
[1761829525846,0.37295,108570.0,108560.0,2.27408429]
[1761829526038,0.37195,108570.0,108560.0,1.87355]
[1761829526236,0.04491,108570.0,108560.0,1.87355]
[1761829526545,0.02287,108570.0,108560.0,1.9656732]
[1761829526947,0.02287,108570.0,108560.0,2.36620749]
[1761829526948,0.001,108570.0,108560.0,2.36620749]
[1761829527142,0.001,108570.0,108560.0,2.27408429]
[1761829527446,0.001,108570.0,108560.0,2.36896749]
[1761829528743,0.001,108570.0,108560.0,2.36620749]
[1761829529150,0.001,108570.0,108560.0,2.36896749]
[1761829529542,0.001,108570.0,108560.0,2.36620749]
[1761829529744,0.04391,108590.0,108580.0,0.05681]
[1761829529948,0.04391,108590.0,108580.0,0.41761]
[1761829531148,0.02187,108590.0,108580.0,0.91025059]
[1761829531346,0.38832164,108600.0,108590.0,0.04281]
[1761829531550,0.38832164,108600.0,108590.0,0.40361]
[1761829531849,0.74738,108620.0,108610.0,0.04281]
[1761829532345,0.40708,108630.0,108620.0,0.05563]
[1761829532543,0.40708,108630.0,108620.0,0.04281]
[1761829532743,0.04628,108620.0,108610.0,0.80414429]
[1761829533147,0.04628,108620.0,108610.0,0.40361]
[1761829534551,0.37798927,108630.0,108610.0,0.40361]
[1761829534755,0.37798927,108630.0,108620.0,0.91179699]
[1761829534756,0.008,108630.0,108620.0,0.91179699]
[1761829535050,0.008,108630.0,108620.0,0.81696429]
[1761829535248,0.003,108630.0,108620.0,0.81696429]
[1761829535553,0.04928,108630.0,108620.0,0.41643]
[1761829535756,0.04628,108630.0,108620.0,0.41643]
[1761829535955,0.005,108630.0,108620.0,0.81972429]
[1761829536657,0.02526,108630.0,108620.0,0.81696429]
[1761829537542,0.02526,108630.0,108620.0,0.81972429]
[1761829537543,0.002,108630.0,108620.0,0.81972429]
[1761829537743,0.003,108630.0,108620.0,0.81696429]
[1761829541953,0.003,108630.0,108620.0,0.90903769]
[1761829543155,0.003,108630.0,108620.0,1.51179769]
[1761829543353,0.003,108630.0,108620.0,0.91179769]
[1761829543962,0.003,108630.0,108620.0,0.90903769]
[1761829544350,0.002,108630.0,108620.0,0.90903769]
[1761829544748,0.75014074,108660.0,108650.0,0.02174]
[1761829544957,0.47414074,108660.0,108650.0,0.02174]
[1761829545158,0.80006074,108660.0,108650.0,0.02174]
[1761829545659,0.04628,108650.0,108640.0,0.45616429]
[1761829546558,0.75498074,108660.0,108650.0,0.04281]
[1761829546757,0.77498074,108660.0,108650.0,0.04281]
[1761829547462,0.77798074,108660.0,108650.0,0.04281]
[1761829547858,0.77298074,108660.0,108650.0,0.04281]
[1761829548353,0.75298074,108660.0,108650.0,0.04281]
[1761829548559,0.77003074,108660.0,108650.0,0.04281]
[1761829548957,0.75798074,108660.0,108650.0,0.04281]
[1761829549351,0.41508,108660.0,108650.0,0.44334429]
[1761829549562,0.05428,108660.0,108650.0,0.44334429]
[1761829549954,0.06337352,108660.0,108650.0,0.44334429]
[1761829550259,0.05428,108660.0,108650.0,0.44334429]